[Event "December 19 Late 2023"]
[Site "https://www.chess.com"]
[Date "2023.12.19"]
[Round "9"]
[White "Romero Ruscalleda, Josep"]
[Black "Shapiro, Viktor"]
[Result "0-1"]
[Board "76"]
[TimeControl "180+1"]
[WhiteFideId "2231859"]
[BlackFideId "4175700"]
[WhiteElo "2200"]
[BlackElo "2044"]
[WhiteTeam "ESP"]
[BlackTeam "RUS"]
[WhiteClock "0:00:11"]
[BlackClock "0:00:14"]

1. e4 {[%clk 0:02:56]}  Nf6 {[%clk 0:02:56]} 2. e5 {[%clk 0:02:56]}  Nd5 {[%clk 0:02:57]} 3. Nf3 {[%clk 0:02:56]}  d6 {[%clk 0:02:57]} 4. d4 {[%clk 0:02:56]}  Bg4 {[%clk 0:02:56]} 5. Be2 {[%clk 0:02:55]}  e6 {[%clk 0:02:56]} 6. O-O {[%clk 0:02:55]}  Be7 {[%clk 0:02:57]} 7. Re1 {[%clk 0:02:54]}  O-O {[%clk 0:02:57]} 8. h3 {[%clk 0:02:54]}  Bh5 {[%clk 0:02:56]} 9. c4 {[%clk 0:02:51]}  Nb6 {[%clk 0:02:56]} 10. exd6 {[%clk 0:02:51]}  cxd6 {[%clk 0:02:57]} 11. b3 {[%clk 0:02:51]}  d5 {[%clk 0:02:56]} 12. c5 {[%clk 0:02:51]}  Bxf3 {[%clk 0:02:56]} 13. Bxf3 {[%clk 0:02:44]}  Nc8 {[%clk 0:02:57]} 14. Bf4 {[%clk 0:02:43]}  Nc6 {[%clk 0:02:57]} 15. Nc3 {[%clk 0:02:40]}  Bf6 {[%clk 0:02:57]} 16. Ne2 {[%clk 0:02:39]}  N8e7 {[%clk 0:02:57]} 17. Rb1 {[%clk 0:02:34]}  Nf5 {[%clk 0:02:56]} 18. Be3 {[%clk 0:02:31]}  b6 {[%clk 0:02:46]} 19. b4 {[%clk 0:02:23]}  bxc5 {[%clk 0:02:46]} 20. dxc5 {[%clk 0:02:18]}  Rb8 {[%clk 0:02:23]} 21. b5 {[%clk 0:02:10]}  Nxe3 {[%clk 0:02:23]} 22. fxe3 {[%clk 0:02:09]}  Ne5 {[%clk 0:02:23]} 23. c6 {[%clk 0:02:05]}  Qa5 {[%clk 0:02:18]} 24. a4 {[%clk 0:01:57]}  Nc4 {[%clk 0:02:10]} 25. Nd4 {[%clk 0:01:51]}  Qb6 {[%clk 0:02:00]} 26. Kh1 {[%clk 0:01:36]}  Nxe3 {[%clk 0:01:57]} 27. Rxe3 {[%clk 0:01:36]}  Qxd4 {[%clk 0:01:55]} 28. Rd3 {[%clk 0:01:22]}  Qf4 {[%clk 0:01:55]} 29. Qc1 {[%clk 0:01:18]}  Qxc1+ {[%clk 0:01:51]} 30. Rxc1 {[%clk 0:01:18]}  Rfc8 {[%clk 0:01:51]} 31. g4 {[%clk 0:01:14]}  Bd8 {[%clk 0:01:48]} 32. Kg2 {[%clk 0:01:11]}  Bc7 {[%clk 0:01:48]} 33. h4 {[%clk 0:01:08]}  g6 {[%clk 0:01:46]} 34. h5 {[%clk 0:01:07]}  Kg7 {[%clk 0:01:45]} 35. Kf2 {[%clk 0:01:05]}  a6 {[%clk 0:01:43]} 36. Rb1 {[%clk 0:01:03]}  axb5 {[%clk 0:01:43]} 37. axb5 {[%clk 0:01:02]}  Bd6 {[%clk 0:01:34]} 38. Rc3 {[%clk 0:00:58]}  Rb6 {[%clk 0:01:32]} 39. Be2 {[%clk 0:00:56]}  Ra8 {[%clk 0:01:22]} 40. Rbc1 {[%clk 0:00:51]}  Bc7 {[%clk 0:01:21]} 41. R1c2 {[%clk 0:00:50]}  Ra4 {[%clk 0:01:19]} 42. hxg6 {[%clk 0:00:48]}  hxg6 {[%clk 0:01:19]} 43. Rh3 {[%clk 0:00:46]}  Rb4 {[%clk 0:01:10]} 44. Rc1 {[%clk 0:00:45]}  e5 {[%clk 0:00:48]} 45. Ra3 {[%clk 0:00:43]}  Rb2 {[%clk 0:00:40]} 46. Kf1 {[%clk 0:00:43]}  e4 {[%clk 0:00:39]} 47. Ra7 {[%clk 0:00:42]}  Bf4 {[%clk 0:00:23]} 48. c7 {[%clk 0:00:40]}  Rf6 {[%clk 0:00:22]} 49. c8=Q {[%clk 0:00:25]}  Bxc1+ {[%clk 0:00:21]} 50. Ke1 {[%clk 0:00:23]}  Bd2+ {[%clk 0:00:20]} 51. Kd1 {[%clk 0:00:23]}  e3 {[%clk 0:00:19]} 52. Ra1 {[%clk 0:00:20]}  Rb4 {[%clk 0:00:15]} 53. g5 {[%clk 0:00:20]}  Rf5 {[%clk 0:00:15]} 54. Qc5 {[%clk 0:00:17]}  Rxg5 {[%clk 0:00:14]} 55. Qxd5 {[%clk 0:00:17]}  Rxd5 {[%clk 0:00:13]} 56. b6 {[%clk 0:00:16]}  Rxb6 {[%clk 0:00:14]} 57. Ra2 {[%clk 0:00:15]}  Rb1+ {[%clk 0:00:13]} 58. Kc2 {[%clk 0:00:16]}  Rc1+ {[%clk 0:00:14]} 59. Kb3 {[%clk 0:00:16]}  Rd6 {[%clk 0:00:14]} 60. Rc2 {[%clk 0:00:14]}  Rb6+ {[%clk 0:00:14]} 61. Kc4 {[%clk 0:00:13]}  Rxc2+ {[%clk 0:00:14]} 62. Kd5 {[%clk 0:00:11]}  Rf6 {[%clk 0:00:14]} 0-1

[Event "December 19 Late 2023"]
[Site "https://www.chess.com"]
[Date "2023.12.19"]
[Round "9"]
[White "UnTucopalaTimba"]
[Black "Cervantes Landeiro, Thalia"]
[Result "0-1"]
[Board "77"]
[TimeControl "180+1"]
[BlackFideId "3520498"]
[WhiteElo "2271"]
[BlackElo "2189"]
[BlackTeam "USA"]
[WhiteClock "0:00:09"]
[BlackClock "0:00:18"]

1. e4 {[%clk 0:03:00]}  c5 {[%clk 0:02:57]} 2. Nf3 {[%clk 0:02:59]}  d6 {[%clk 0:02:58]} 3. Bb5+ {[%clk 0:02:58]}  Nd7 {[%clk 0:02:58]} 4. d4 {[%clk 0:02:57]}  cxd4 {[%clk 0:02:58]} 5. Qxd4 {[%clk 0:02:57]}  a6 {[%clk 0:02:57]} 6. Bxd7+ {[%clk 0:02:57]}  Bxd7 {[%clk 0:02:57]} 7. Bg5 {[%clk 0:02:56]}  Nf6 {[%clk 0:02:57]} 8. Bxf6 {[%clk 0:02:52]}  gxf6 {[%clk 0:02:56]} 9. O-O {[%clk 0:02:52]}  Rg8 {[%clk 0:02:56]} 10. Kh1 {[%clk 0:02:51]}  Rc8 {[%clk 0:02:55]} 11. c4 {[%clk 0:02:47]}  Bg7 {[%clk 0:02:54]} 12. Nc3 {[%clk 0:02:41]}  f5 {[%clk 0:02:53]} 13. Qd3 {[%clk 0:02:39]}  Bxc3 {[%clk 0:02:50]} 14. bxc3 {[%clk 0:02:37]}  fxe4 {[%clk 0:02:49]} 15. Qxe4 {[%clk 0:02:37]}  Bc6 {[%clk 0:02:34]} 16. Qxh7 {[%clk 0:02:37]}  Kd7 {[%clk 0:02:24]} 17. Qf5+ {[%clk 0:02:24]}  Kc7 {[%clk 0:02:23]} 18. Rab1 {[%clk 0:02:21]}  Qf8 {[%clk 0:02:13]} 19. c5 {[%clk 0:02:16]}  dxc5 {[%clk 0:02:03]} 20. Qxc5 {[%clk 0:02:14]}  Kb8 {[%clk 0:02:03]} 21. Qe5+ {[%clk 0:02:10]}  Ka8 {[%clk 0:02:03]} 22. Rfe1 {[%clk 0:02:03]}  e6 {[%clk 0:01:59]} 23. Qf4 {[%clk 0:01:50]}  Qg7 {[%clk 0:01:56]} 24. Qg3 {[%clk 0:01:46]}  Qxc3 {[%clk 0:01:49]} 25. Qf4 {[%clk 0:01:40]}  Rg6 {[%clk 0:01:30]} 26. Qxf7 {[%clk 0:01:31]}  Rcg8 {[%clk 0:01:27]} 27. Rec1 {[%clk 0:01:08]}  Qd3 {[%clk 0:01:14]} 28. Rd1 {[%clk 0:00:55]}  Qe4 {[%clk 0:01:04]} 29. Re1 {[%clk 0:00:46]}  Qg4 {[%clk 0:00:56]} 30. Rg1 {[%clk 0:00:39]}  R6g7 {[%clk 0:00:43]} 31. Qf6 {[%clk 0:00:35]}  Rh7 {[%clk 0:00:41]} 32. Rbe1 {[%clk 0:00:20]}  Rgh8 {[%clk 0:00:19]} 33. Qxe6 {[%clk 0:00:11]}  Bxf3 {[%clk 0:00:18]} 34. Qxg4 {[%clk 0:00:09]}  Rxh2# {[%clk 0:00:18]} 0-1

[Event "December 19 Late 2023"]
[Site "https://www.chess.com"]
[Date "2023.12.19"]
[Round "9"]
[White "Pham, Le Thao Nguyen"]
[Black "Kovacevic, Radmila"]
[Result "1-0"]
[Board "79"]
[TimeControl "180+1"]
[WhiteFideId "12401226"]
[BlackFideId "933171"]
[WhiteElo "2261"]
[BlackElo "2052"]
[WhiteTeam "VIE"]
[BlackTeam "SRB"]
[WhiteClock "0:00:08"]
[BlackClock "0:00:06"]

1. d4 {[%clk 0:03:00]}  e5 {[%clk 0:02:59]} 2. dxe5 {[%clk 0:03:00]}  Nc6 {[%clk 0:03:00]} 3. Nf3 {[%clk 0:02:59]}  Qe7 {[%clk 0:03:00]} 4. Qd5 {[%clk 0:02:32]}  f6 {[%clk 0:02:59]} 5. exf6 {[%clk 0:02:18]}  Nxf6 {[%clk 0:03:00]} 6. Qd1 {[%clk 0:02:18]}  d5 {[%clk 0:03:00]} 7. e3 {[%clk 0:02:17]}  Bg4 {[%clk 0:02:59]} 8. Be2 {[%clk 0:02:17]}  O-O-O {[%clk 0:02:59]} 9. c3 {[%clk 0:02:17]}  h5 {[%clk 0:02:30]} 10. h3 {[%clk 0:02:16]}  Bxf3 {[%clk 0:02:27]} 11. Bxf3 {[%clk 0:02:16]}  g5 {[%clk 0:02:14]} 12. b4 {[%clk 0:02:07]}  Bg7 {[%clk 0:01:59]} 13. b5 {[%clk 0:02:06]}  Ne5 {[%clk 0:01:58]} 14. Be2 {[%clk 0:02:06]}  g4 {[%clk 0:01:53]} 15. Ba3 {[%clk 0:01:46]}  Qf7 {[%clk 0:01:48]} 16. Bc5 {[%clk 0:01:46]}  b6 {[%clk 0:01:42]} 17. Bd4 {[%clk 0:01:46]}  Ne4 {[%clk 0:01:30]} 18. Rf1 {[%clk 0:01:42]}  gxh3 {[%clk 0:01:23]} 19. gxh3 {[%clk 0:01:43]}  Rdf8 {[%clk 0:01:18]} 20. Nd2 {[%clk 0:01:05]}  Nxf2 {[%clk 0:01:13]} 21. Qc2 {[%clk 0:01:05]}  Rh6 {[%clk 0:01:00]} 22. a4 {[%clk 0:00:56]}  Bh8 {[%clk 0:00:50]} 23. a5 {[%clk 0:00:56]}  Re6 {[%clk 0:00:47]} 24. axb6 {[%clk 0:00:55]}  cxb6 {[%clk 0:00:46]} 25. c4 {[%clk 0:00:43]}  Re7 {[%clk 0:00:30]} 26. c5 {[%clk 0:00:38]}  Rc7 {[%clk 0:00:26]} 27. c6 {[%clk 0:00:36]}  Qf6 {[%clk 0:00:18]} 28. Ra2 {[%clk 0:00:33]}  Qh4 {[%clk 0:00:17]} 29. Bxe5 {[%clk 0:00:22]}  Bxe5 {[%clk 0:00:17]} 30. Nf3 {[%clk 0:00:21]}  Rxf3 {[%clk 0:00:15]} 31. Bxf3 {[%clk 0:00:22]}  Ne4+ {[%clk 0:00:14]} 32. Kd1 {[%clk 0:00:19]}  Nc3+ {[%clk 0:00:14]} 33. Kc1 {[%clk 0:00:18]}  Nxa2+ {[%clk 0:00:14]} 34. Qxa2 {[%clk 0:00:19]}  Qc4+ {[%clk 0:00:14]} 35. Qxc4 {[%clk 0:00:19]}  dxc4 {[%clk 0:00:14]} 36. Bd5 {[%clk 0:00:17]}  Rg7 {[%clk 0:00:13]} 37. Bxc4 {[%clk 0:00:15]}  Kc7 {[%clk 0:00:13]} 38. Kd2 {[%clk 0:00:15]}  Bg3 {[%clk 0:00:12]} 39. Kd3 {[%clk 0:00:14]}  h4 {[%clk 0:00:12]} 40. Bd5 {[%clk 0:00:14]}  Kd6 {[%clk 0:00:11]} 41. Kc4 {[%clk 0:00:13]}  a6 {[%clk 0:00:09]} 42. bxa6 {[%clk 0:00:12]}  b5+ {[%clk 0:00:10]} 43. Kd4 {[%clk 0:00:10]}  Be5+ {[%clk 0:00:10]} 44. Ke4 {[%clk 0:00:10]}  Re7 {[%clk 0:00:11]} 45. Rd1 {[%clk 0:00:10]}  Bc3+ {[%clk 0:00:10]} 46. Kf3 {[%clk 0:00:08]}  Kc5 {[%clk 0:00:10]} 47. e4 {[%clk 0:00:07]}  b4 {[%clk 0:00:11]} 48. Rc1 {[%clk 0:00:06]}  Ra7 {[%clk 0:00:11]} 49. Rd1 {[%clk 0:00:04]}  Kb5 {[%clk 0:00:10]} 50. Kf4 {[%clk 0:00:03]}  Kxa6 {[%clk 0:00:10]} 51. e5 {[%clk 0:00:03]}  Kb6 {[%clk 0:00:11]} 52. e6 {[%clk 0:00:03]}  Re7 {[%clk 0:00:11]} 53. Ke4 {[%clk 0:00:04]}  Kc5 {[%clk 0:00:11]} 54. Rf1 {[%clk 0:00:04]}  Kd6 {[%clk 0:00:11]} 55. Rf7 {[%clk 0:00:04]}  Bb2 {[%clk 0:00:10]} 56. Rxe7 {[%clk 0:00:05]}  Kxe7 {[%clk 0:00:10]} 57. c7 {[%clk 0:00:05]}  Bf6 {[%clk 0:00:06]} 58. c8=Q {[%clk 0:00:06]}  b3 {[%clk 0:00:06]} 59. Qd7+ {[%clk 0:00:07]}  Kf8 {[%clk 0:00:06]} 60. Qf7# {[%clk 0:00:08]} 1-0

[Event "December 19 Late 2023"]
[Site "https://www.chess.com"]
[Date "2023.12.19"]
[Round "9"]
[White "Kubatko, Ivan"]
[Black "Tifferet, Shakked"]
[Result "0-1"]
[Board "85"]
[TimeControl "180+1"]
[WhiteFideId "24111473"]
[BlackFideId "2811529"]
[WhiteElo "2285"]
[BlackElo "2142"]
[WhiteTeam "RUS"]
[BlackTeam "ISR"]
[WhiteClock "0:00:05"]
[BlackClock "0:00:08"]

1. e4 {[%clk 0:03:00]}  c5 {[%clk 0:02:59]} 2. c3 {[%clk 0:03:01]}  g6 {[%clk 0:02:57]} 3. d4 {[%clk 0:03:01]}  cxd4 {[%clk 0:02:57]} 4. cxd4 {[%clk 0:03:02]}  d5 {[%clk 0:02:57]} 5. exd5 {[%clk 0:03:02]}  Nf6 {[%clk 0:02:57]} 6. Nc3 {[%clk 0:03:00]}  Bg7 {[%clk 0:02:55]} 7. Qb3 {[%clk 0:02:57]}  O-O {[%clk 0:02:55]} 8. g3 {[%clk 0:02:26]}  e6 {[%clk 0:02:46]} 9. dxe6 {[%clk 0:02:25]}  Bxe6 {[%clk 0:02:46]} 10. Qxb7 {[%clk 0:02:25]}  Re8 {[%clk 0:01:57]} 11. Be3 {[%clk 0:02:03]}  Nbd7 {[%clk 0:01:50]} 12. Bg2 {[%clk 0:01:36]}  Rb8 {[%clk 0:01:49]} 13. Qxa7 {[%clk 0:01:36]}  Rxb2 {[%clk 0:01:46]} 14. Nge2 {[%clk 0:01:06]}  Bc4 {[%clk 0:01:45]} 15. Bf3 {[%clk 0:01:07]}  Re7 {[%clk 0:01:13]} 16. Qa3 {[%clk 0:01:00]}  Rc2 {[%clk 0:01:02]} 17. O-O {[%clk 0:00:50]}  Qe8 {[%clk 0:00:56]} 18. Rac1 {[%clk 0:00:20]}  Rxe3 {[%clk 0:00:50]} 19. fxe3 {[%clk 0:00:14]}  Qxe3+ {[%clk 0:00:50]} 20. Kg2 {[%clk 0:00:13]}  Rxe2+ {[%clk 0:00:35]} 21. Bxe2 {[%clk 0:00:06]}  Bxe2 {[%clk 0:00:33]} 22. Qa8+ {[%clk 0:00:04]}  Bf8 {[%clk 0:00:24]} 23. Nxe2 {[%clk 0:00:04]}  Qxe2+ {[%clk 0:00:23]} 24. Rf2 {[%clk 0:00:05]}  Qe3 {[%clk 0:00:17]} 25. Rcf1 {[%clk 0:00:05]}  Qxd4 {[%clk 0:00:16]} 26. h3 {[%clk 0:00:04]}  Kg7 {[%clk 0:00:16]} 27. g4 {[%clk 0:00:05]}  h6 {[%clk 0:00:13]} 28. Qf3 {[%clk 0:00:04]}  Bd6 {[%clk 0:00:12]} 29. Re2 {[%clk 0:00:03]}  Be5 {[%clk 0:00:10]} 30. Qe3 {[%clk 0:00:04]}  Qd5+ {[%clk 0:00:09]} 31. Qf3 {[%clk 0:00:04]}  Qb5 {[%clk 0:00:10]} 32. h4 {[%clk 0:00:04]}  Bc7 {[%clk 0:00:09]} 33. g5 {[%clk 0:00:04]}  hxg5 {[%clk 0:00:08]} 34. hxg5 {[%clk 0:00:05]}  Qxg5+ {[%clk 0:00:08]} 35. Kh1 {[%clk 0:00:05]}  Qh4+ {[%clk 0:00:08]} 36. Kg2 {[%clk 0:00:05]}  Qh2# {[%clk 0:00:08]} 0-1

[Event "December 19 Late 2023"]
[Site "https://www.chess.com"]
[Date "2023.12.19"]
[Round "9"]
[White "Lopusiewicz, Piotr"]
[Black "Essing, Arnold"]
[Result "1-0"]
[Board "87"]
[TimeControl "180+1"]
[WhiteFideId "1116029"]
[BlackFideId "4619862"]
[WhiteElo "2286"]
[BlackElo "2257"]
[WhiteTeam "POL"]
[BlackTeam "GER"]
[WhiteClock "0:00:51"]
[BlackClock "0:00:04"]

1. d4 {[%clk 0:03:00]}  d5 {[%clk 0:02:59]} 2. c4 {[%clk 0:03:01]}  e6 {[%clk 0:03:00]} 3. Nf3 {[%clk 0:03:01]}  c5 {[%clk 0:03:00]} 4. cxd5 {[%clk 0:03:00]}  exd5 {[%clk 0:03:01]} 5. Nc3 {[%clk 0:03:00]}  Nc6 {[%clk 0:03:00]} 6. dxc5 {[%clk 0:02:56]}  d4 {[%clk 0:02:59]} 7. Na4 {[%clk 0:02:56]}  Bxc5 {[%clk 0:02:59]} 8. Nxc5 {[%clk 0:02:56]}  Qa5+ {[%clk 0:02:59]} 9. Bd2 {[%clk 0:02:46]}  Qxc5 {[%clk 0:02:59]} 10. b4 {[%clk 0:02:38]}  Qb6 {[%clk 0:02:53]} 11. b5 {[%clk 0:02:35]}  Qxb5 {[%clk 0:02:40]} 12. e3 {[%clk 0:02:35]}  Qd5 {[%clk 0:02:37]} 13. Nxd4 {[%clk 0:02:24]}  Nxd4 {[%clk 0:02:33]} 14. Bc3 {[%clk 0:02:15]}  Ne7 {[%clk 0:02:14]} 15. Qxd4 {[%clk 0:02:10]}  Qxd4 {[%clk 0:02:07]} 16. Bxd4 {[%clk 0:02:11]}  O-O {[%clk 0:02:05]} 17. Be2 {[%clk 0:02:11]}  Be6 {[%clk 0:01:56]} 18. f3 {[%clk 0:01:49]}  Rfc8 {[%clk 0:01:52]} 19. Bd3 {[%clk 0:01:41]}  Nd5 {[%clk 0:01:41]} 20. Kd2 {[%clk 0:01:38]}  Nb4 {[%clk 0:01:35]} 21. Be4 {[%clk 0:01:33]}  Bd5 {[%clk 0:01:19]} 22. Bb1 {[%clk 0:01:30]}  Bxa2 {[%clk 0:01:11]} 23. Rxa2 {[%clk 0:01:24]}  Nxa2 {[%clk 0:01:10]} 24. Bxa2 {[%clk 0:01:24]}  Rc7 {[%clk 0:00:36]} 25. Bd5 {[%clk 0:01:21]}  Rd8 {[%clk 0:00:34]} 26. e4 {[%clk 0:01:21]}  b6 {[%clk 0:00:31]} 27. Rb1 {[%clk 0:01:13]}  h6 {[%clk 0:00:31]} 28. h4 {[%clk 0:01:11]}  Kf8 {[%clk 0:00:27]} 29. h5 {[%clk 0:01:11]}  f5 {[%clk 0:00:26]} 30. Kd3 {[%clk 0:01:06]}  fxe4+ {[%clk 0:00:20]} 31. fxe4 {[%clk 0:01:06]}  Ke7 {[%clk 0:00:19]} 32. Bxg7 {[%clk 0:01:01]}  Kd6 {[%clk 0:00:15]} 33. Bxh6 {[%clk 0:01:00]}  Ke5 {[%clk 0:00:15]} 34. Rf1 {[%clk 0:00:54]}  Rh7 {[%clk 0:00:07]} 35. Bf4+ {[%clk 0:00:52]}  Kf6 {[%clk 0:00:04]} 36. Bc7+ {[%clk 0:00:51]} 1-0

[Event "December 19 Late 2023"]
[Site "https://www.chess.com"]
[Date "2023.12.19"]
[Round "9"]
[White "Przybylski, Wojciech"]
[Black "Fernandez Bustamante, Leancy B."]
[Result "1-0"]
[Board "93"]
[TimeControl "180+1"]
[WhiteFideId "1117599"]
[BlackFideId "3523870"]
[WhiteElo "2203"]
[BlackElo "2049"]
[WhiteTeam "POL"]
[BlackTeam "CUB"]
[WhiteClock "0:01:34"]
[BlackClock "0:00:17"]

1. e4 {[%clk 0:02:43]}  c5 {[%clk 0:02:59]} 2. Nf3 {[%clk 0:02:42]}  a6 {[%clk 0:02:59]} 3. c3 {[%clk 0:02:37]}  d5 {[%clk 0:02:57]} 4. e5 {[%clk 0:02:37]}  Bf5 {[%clk 0:02:57]} 5. d4 {[%clk 0:02:29]}  e6 {[%clk 0:02:53]} 6. dxc5 {[%clk 0:02:24]}  Bxc5 {[%clk 0:02:54]} 7. Nd4 {[%clk 0:02:24]}  Bg6 {[%clk 0:02:52]} 8. h4 {[%clk 0:02:24]}  h6 {[%clk 0:02:50]} 9. h5 {[%clk 0:02:23]}  Bh7 {[%clk 0:02:50]} 10. Qg4 {[%clk 0:02:23]}  Bxb1 {[%clk 0:02:16]} 11. Qxg7 {[%clk 0:02:18]}  Bxd4 {[%clk 0:01:54]} 12. Qxh8 {[%clk 0:02:14]}  Kf8 {[%clk 0:01:52]} 13. cxd4 {[%clk 0:02:07]}  Ke7 {[%clk 0:01:21]} 14. Rxb1 {[%clk 0:02:04]}  Qa5+ {[%clk 0:01:20]} 15. Bd2 {[%clk 0:01:58]}  Qxa2 {[%clk 0:01:20]} 16. Bd3 {[%clk 0:01:55]}  Nc6 {[%clk 0:01:17]} 17. O-O {[%clk 0:01:48]}  Nxd4 {[%clk 0:01:16]} 18. Bb4+ {[%clk 0:01:45]}  Kd7 {[%clk 0:01:14]} 19. Qg7 {[%clk 0:01:43]}  Nc6 {[%clk 0:01:07]} 20. Qxf7+ {[%clk 0:01:41]}  Nge7 {[%clk 0:01:04]} 21. Bd6 {[%clk 0:01:34]}  Qb3 {[%clk 0:00:57]} 22. Rbc1 {[%clk 0:01:34]}  Qxd3 {[%clk 0:00:28]} 23. Rxc6 {[%clk 0:01:33]}  Kxc6 {[%clk 0:00:28]} 24. Qxe7 {[%clk 0:01:33]}  Rg8 {[%clk 0:00:19]} 25. Qc7+ {[%clk 0:01:32]}  Kb5 {[%clk 0:00:18]} 26. Qc5+ {[%clk 0:01:33]}  Ka4 {[%clk 0:00:17]} 27. Qb4# {[%clk 0:01:34]} 1-0

[Event "December 19 Late 2023"]
[Site "https://www.chess.com"]
[Date "2023.12.19"]
[Round "9"]
[White "Biernacki, Mark"]
[Black "Soderstrom, Adrian"]
[Result "0-1"]
[Board "94"]
[TimeControl "180+1"]
[WhiteFideId "2082322"]
[BlackFideId "1745786"]
[WhiteElo "1965"]
[BlackElo "2154"]
[WhiteTeam "USA"]
[BlackTeam "SWE"]
[WhiteClock "0:00:32"]
[BlackClock "0:02:06"]

1. e4 {[%clk 0:02:59]}  e6 {[%clk 0:02:59]} 2. d4 {[%clk 0:02:59]}  d5 {[%clk 0:02:59]} 3. exd5 {[%clk 0:03:00]}  exd5 {[%clk 0:03:00]} 4. h3 {[%clk 0:03:01]}  Nc6 {[%clk 0:02:56]} 5. Nf3 {[%clk 0:03:01]}  Bd6 {[%clk 0:02:53]} 6. c4 {[%clk 0:02:59]}  Bf5 {[%clk 0:02:49]} 7. a3 {[%clk 0:02:30]}  Qe7+ {[%clk 0:02:48]} 8. Be3 {[%clk 0:02:30]}  O-O-O {[%clk 0:02:31]} 9. cxd5 {[%clk 0:02:26]}  Bg3 {[%clk 0:02:30]} 10. Qb3 {[%clk 0:02:02]}  Na5 {[%clk 0:02:28]} 11. Qc3 {[%clk 0:02:02]}  Nf6 {[%clk 0:02:23]} 12. Ne5 {[%clk 0:01:00]}  Nxd5 {[%clk 0:02:19]} 13. Qxa5 {[%clk 0:00:59]}  Nxe3 {[%clk 0:02:15]} 14. Qxa7 {[%clk 0:00:52]}  Nc2+ {[%clk 0:02:15]} 15. Kd2 {[%clk 0:00:41]}  Rxd4+ {[%clk 0:02:15]} 16. Kc1 {[%clk 0:00:38]}  Bf4+ {[%clk 0:02:15]} 17. Nd2 {[%clk 0:00:37]}  Bxd2+ {[%clk 0:02:15]} 18. Kb1 {[%clk 0:00:37]}  Qxe5 {[%clk 0:02:05]} 19. Qa8+ {[%clk 0:00:34]}  Kd7 {[%clk 0:02:05]} 20. Qxh8 {[%clk 0:00:33]}  Nb4+ {[%clk 0:02:05]} 21. Bd3 {[%clk 0:00:32]}  Bxd3# {[%clk 0:02:06]} 0-1

[Event "December 19 Late 2023"]
[Site "https://www.chess.com"]
[Date "2023.12.19"]
[Round "9"]
[White "Bogaudinov, Rushan"]
[Black "Vanek, Tomas"]
[Result "1/2-1/2"]
[Board "100"]
[TimeControl "180+1"]
[WhiteFideId "4129288"]
[BlackFideId "313459"]
[WhiteElo "1937"]
[BlackElo "2052"]
[WhiteTeam "RUS"]
[BlackTeam "CZE"]
[WhiteClock "0:00:20"]
[BlackClock "0:00:24"]

1. b3 {[%clk 0:02:59]}  f5 {[%clk 0:02:56]} 2. e4 {[%clk 0:02:58]}  d6 {[%clk 0:02:48]} 3. Bb2 {[%clk 0:02:58]}  e5 {[%clk 0:02:47]} 4. d4 {[%clk 0:02:57]}  Nc6 {[%clk 0:02:42]} 5. Bb5 {[%clk 0:02:56]}  exd4 {[%clk 0:02:36]} 6. Bxd4 {[%clk 0:02:44]}  Nf6 {[%clk 0:02:17]} 7. Nc3 {[%clk 0:02:39]}  Qe7 {[%clk 0:02:09]} 8. Nge2 {[%clk 0:02:33]}  Bd7 {[%clk 0:02:09]} 9. O-O {[%clk 0:02:31]}  Nxd4 {[%clk 0:02:07]} 10. Nxd4 {[%clk 0:02:31]}  c6 {[%clk 0:02:06]} 11. Nxf5 {[%clk 0:02:25]}  Bxf5 {[%clk 0:02:02]} 12. exf5 {[%clk 0:02:26]}  O-O-O {[%clk 0:02:01]} 13. Bd3 {[%clk 0:02:26]}  Qe5 {[%clk 0:01:57]} 14. Qd2 {[%clk 0:02:22]}  Ng4 {[%clk 0:01:56]} 15. g3 {[%clk 0:02:16]}  Qf6 {[%clk 0:01:53]} 16. Ne4 {[%clk 0:02:10]}  Qd4 {[%clk 0:01:46]} 17. h3 {[%clk 0:02:06]}  Ne5 {[%clk 0:01:44]} 18. Kg2 {[%clk 0:01:56]}  d5 {[%clk 0:01:41]} 19. Ng5 {[%clk 0:01:55]}  Bb4 {[%clk 0:01:39]} 20. Qe3 {[%clk 0:01:54]}  Qxe3 {[%clk 0:01:35]} 21. fxe3 {[%clk 0:01:54]}  h6 {[%clk 0:01:33]} 22. Ne6 {[%clk 0:01:54]}  Rd7 {[%clk 0:01:30]} 23. Rad1 {[%clk 0:01:51]}  Rf7 {[%clk 0:01:23]} 24. g4 {[%clk 0:01:50]}  Nd7 {[%clk 0:01:12]} 25. c4 {[%clk 0:01:47]}  Nc5 {[%clk 0:01:07]} 26. cxd5 {[%clk 0:01:46]}  cxd5 {[%clk 0:01:07]} 27. Nxc5 {[%clk 0:01:45]}  Bxc5 {[%clk 0:01:07]} 28. Rc1 {[%clk 0:01:46]}  Rc7 {[%clk 0:01:07]} 29. Rfd1 {[%clk 0:01:38]}  Bxe3 {[%clk 0:01:04]} 30. Rxc7+ {[%clk 0:01:38]}  Kxc7 {[%clk 0:01:04]} 31. Kf3 {[%clk 0:01:35]}  d4 {[%clk 0:01:02]} 32. Bc4 {[%clk 0:01:35]}  Rd8 {[%clk 0:01:00]} 33. a4 {[%clk 0:01:33]}  a6 {[%clk 0:01:00]} 34. Rd3 {[%clk 0:01:30]}  Bg5 {[%clk 0:00:59]} 35. Ke4 {[%clk 0:01:28]}  Bf6 {[%clk 0:00:59]} 36. Be6 {[%clk 0:01:26]}  Kb6 {[%clk 0:00:58]} 37. Rd1 {[%clk 0:01:17]}  Ka5 {[%clk 0:00:34]} 38. Kd3 {[%clk 0:01:15]}  Rd6 {[%clk 0:00:32]} 39. Rc1 {[%clk 0:01:11]}  Rc6 {[%clk 0:00:31]} 40. Rxc6 {[%clk 0:01:04]}  bxc6 {[%clk 0:00:32]} 41. Kc4 {[%clk 0:01:05]}  Kb6 {[%clk 0:00:32]} 42. b4 {[%clk 0:00:56]}  a5 {[%clk 0:00:32]} 43. b5 {[%clk 0:00:38]}  cxb5+ {[%clk 0:00:32]} 44. axb5 {[%clk 0:00:39]}  a4 {[%clk 0:00:28]} 45. Kb4 {[%clk 0:00:38]}  a3 {[%clk 0:00:28]} 46. Kxa3 {[%clk 0:00:35]}  Kxb5 {[%clk 0:00:28]} 47. Kb3 {[%clk 0:00:35]}  Kc5 {[%clk 0:00:28]} 48. Kc2 {[%clk 0:00:34]}  Kd6 {[%clk 0:00:28]} 49. Kd3 {[%clk 0:00:34]}  Ke5 {[%clk 0:00:29]} 50. Bf7 {[%clk 0:00:26]}  Kf4 {[%clk 0:00:29]} 51. Bh5 {[%clk 0:00:26]}  Kg3 {[%clk 0:00:29]} 52. g5 {[%clk 0:00:19]}  hxg5 {[%clk 0:00:28]} 53. Bg4 {[%clk 0:00:19]}  Kf4 {[%clk 0:00:27]} 54. Ke2 {[%clk 0:00:17]}  Ke4 {[%clk 0:00:27]} 55. Kd2 {[%clk 0:00:17]}  d3 {[%clk 0:00:27]} 56. Kd1 {[%clk 0:00:14]}  Ke3 {[%clk 0:00:27]} 57. Bh5 {[%clk 0:00:14]}  d2 {[%clk 0:00:27]} 58. Bg4 {[%clk 0:00:14]}  Be5 {[%clk 0:00:27]} 59. Bh5 {[%clk 0:00:14]}  Bf4 {[%clk 0:00:27]} 60. Bg4 {[%clk 0:00:14]}  Ke4 {[%clk 0:00:27]} 61. Bh5 {[%clk 0:00:12]}  Kxf5 {[%clk 0:00:27]} 62. Bg4+ {[%clk 0:00:13]}  Ke5 {[%clk 0:00:27]} 63. Bd7 {[%clk 0:00:14]}  Kd4 {[%clk 0:00:27]} 64. Bg4 {[%clk 0:00:15]}  Ke3 {[%clk 0:00:27]} 65. Bd7 {[%clk 0:00:16]}  Kf2 {[%clk 0:00:27]} 66. Bg4 {[%clk 0:00:16]}  Kg3 {[%clk 0:00:27]} 67. Bd7 {[%clk 0:00:17]}  Kh4 {[%clk 0:00:27]} 68. Bg4 {[%clk 0:00:18]}  Kg3 {[%clk 0:00:27]} 69. Bd7 {[%clk 0:00:19]}  Kh4 {[%clk 0:00:25]} 70. Bg4 {[%clk 0:00:20]}  Kg3 {[%clk 0:00:24]} 1/2-1/2